fUSD/lending_fUSD_20250225
["ID","MTS","AMOUNT","RATE_DAILY","PERIOD"]
[354448915,1740502870042,-500.0,0.00055068,120]
[354448916,1740502870068,-500.0,0.00055068,120]
[354448917,1740502870097,-500.0,0.00055068,120]
[354448918,1740502870124,-500.0,0.00055068,120]
[354448919,1740502870151,-500.0,0.00055068,120]
[354448920,1740502870179,-500.0,0.00055068,120]
[354448921,1740502870205,-1996.22,0.00055068,120]
[354448922,1740502870234,-500.0,0.00055068,120]
[354448923,1740502870263,-500.0,0.00055068,120]
[354448924,1740502870291,-500.0,0.00055068,120]
[354448925,1740502870319,-203.66445741,0.00055068,120]
[354448926,1740502870346,-500.0,0.00055068,120]
[354448927,1740502870372,-1683.22,0.00055068,120]
[354448928,1740502870398,-503.12933727,0.00055068,120]
[354448929,1740502870425,-501.80104579,0.00055068,120]
[354448930,1740502870454,-500.0,0.00055068,120]
[354448931,1740502870485,-652.46,0.00055068,120]
[354448932,1740502870515,-1913.74,0.00055068,120]
[354448933,1740502870546,-500.0,0.00055068,120]
[354448934,1740502870576,-501.66131974,0.00055068,120]
[354448935,1740502870605,-502.89680567,0.00055068,120]
[354448936,1740502870632,-500.0,0.00055068,120]
[354448937,1740502870660,-504.78513581,0.00055068,120]
[354448938,1740502870689,-526.74545924,0.00055068,120]
[354448939,1740502870719,-500.0,0.00055068,120]
[354448940,1740502870747,-500.0,0.00055068,120]
[354448941,1740502870775,-500.0,0.00055068,120]
[354448942,1740502870803,-503.27290653,0.00055068,120]
[354448943,1740502870831,-500.0,0.00055068,120]
[354448944,1740502870858,-500.0,0.00055068,120]
[354448945,1740502870887,-500.0,0.00055068,120]
[354448946,1740502870913,-1512.37,0.00055068,120]
[354448947,1740502870941,-500.0,0.00055068,120]
[354448948,1740502870970,-500.0,0.00055068,120]
[354448949,1740502870997,-500.0,0.00055068,120]
[354448950,1740502871023,-500.0,0.00055068,120]
[354448951,1740502871050,-500.0,0.00055068,120]
[354448952,1740502871077,-500.0,0.00055068,120]
[354448953,1740502871104,-500.0,0.00055068,120]
[354448954,1740502871130,-500.0,0.00055068,120]
[354448955,1740502871157,-1969.94,0.00055068,120]
[354448956,1740502871185,-500.0,0.00055068,120]
[354448957,1740502871213,-500.0,0.00055068,120]
[354448958,1740502871240,-500.0,0.00055068,120]
[354448959,1740502871266,-708.48,0.00055068,120]
[354448960,1740502871292,-500.0,0.00055068,120]
[354448961,1740502871318,-500.0,0.00055068,120]
[354448962,1740502871344,-662.64,0.00055068,120]
[354448963,1740502871370,-500.0,0.00055068,120]
[354448964,1740502871397,-833.59,0.00055068,120]
[354448965,1740502871425,-500.0,0.00055068,120]
[354448966,1740502871451,-500.0,0.00055068,120]
[354448967,1740502871481,-1283.3,0.00055068,120]
[354448968,1740502871508,-500.0,0.00055068,120]
[354448969,1740502871535,-500.0,0.00055068,120]
[354448970,1740502871561,-500.0,0.00055068,120]
[354448971,1740502871587,-500.0,0.00055068,120]
[354448972,1740502871614,-752.53,0.00055068,120]
[354448973,1740502871642,-500.0,0.00055068,120]
[354448974,1740502871669,-850.8,0.00055068,120]
[354448975,1740502871696,-500.0,0.00055068,120]
[354448976,1740502871727,-500.0,0.00055068,120]
[354448977,1740502871754,-500.0,0.00055068,120]
[354448978,1740502871781,-500.0,0.00055068,120]
[354448979,1740502871808,-503.21458572,0.00055068,120]
[354448980,1740502871836,-500.0,0.00055068,120]
[354448981,1740502871862,-500.0,0.00055068,120]
[354448982,1740502871888,-500.0,0.00055068,120]
[354448983,1740502871914,-500.0,0.00055068,120]
[354448984,1740502871939,-500.0,0.00055068,120]
[354448985,1740502871966,-500.0,0.00055068,120]
[354448986,1740502871992,-1081.44,0.00055068,120]
[354448987,1740502872019,-500.0,0.00055068,120]
[354448988,1740502872044,-500.0,0.00055068,120]
[354448989,1740502872070,-344.79572524,0.00055068,120]
[354448990,1740502872096,-580.31,0.00055068,120]
[354448991,1740502872123,-500.0,0.00055068,120]
[354448992,1740502872148,-500.0,0.00055068,120]
[354448993,1740502872175,-500.0,0.00055068,120]
[354448994,1740502872202,-500.0,0.00055068,120]
[354448995,1740502872394,-222.62007948,0.00055068,120]
[354448996,1740502872434,-500.0,0.00055068,120]
[354448997,1740502872462,-500.0,0.00055068,120]
[354448998,1740502872495,-503.68255046,0.00055068,120]
[354448999,1740502872525,-614.42,0.00055068,120]
[354449000,1740502872555,-1673.42,0.00055068,120]
[354449001,1740502872584,-602.61,0.00055068,120]
[354449002,1740502872612,-500.0,0.00055068,120]
[354449003,1740502872639,-500.0,0.00055068,120]
[354449004,1740502872668,-500.0,0.00055068,120]
[354449005,1740502872697,-500.0,0.00055068,120]
[354449006,1740502872724,-500.0,0.00055068,120]
[354449007,1740502872751,-500.0,0.00055068,120]
[354449008,1740502872777,-1181.31,0.00055068,120]
[354449009,1740502872802,-500.0,0.00055068,120]
[354449010,1740502872831,-872.04,0.00055068,120]
[354449011,1740502872857,-693.91,0.00055068,120]
[354449012,1740502872883,-500.0,0.00055068,120]
[354449013,1740502872908,-543.14,0.00055068,120]
[354449014,1740502872935,-500.0,0.00055068,120]
[354449015,1740502872962,-500.0,0.00055068,120]
[354449016,1740502872992,-500.0,0.00055068,120]
[354449017,1740502873018,-942.62,0.00055068,120]
[354449018,1740502873046,-500.0,0.00055068,120]
[354449019,1740502873074,-500.0,0.00055068,120]
[354449020,1740502873100,-500.0,0.00055068,120]
[354449021,1740502873128,-682.17,0.00055068,120]
[354449022,1740502873156,-1128.12,0.00055068,120]
[354449023,1740502873186,-1567.39,0.00055068,120]
[354449024,1740502873213,-501.90007259,0.00055068,120]
[354449025,1740502873246,-500.0,0.00055068,120]
[354449026,1740502873274,-1732.52,0.00055068,120]
[354449027,1740502873302,-507.12454378,0.00055068,120]
[354449028,1740502873329,-500.0,0.00055068,120]
[354449029,1740502873357,-500.0,0.00055068,120]
[354449030,1740502873386,-500.0,0.00055068,120]
[354449031,1740502873414,-500.0,0.00055068,120]
[354449032,1740502873443,-500.0,0.00055068,120]
[354449033,1740502873474,-500.0,0.00055068,120]
[354449034,1740502873505,-500.0,0.00055068,120]
[354449035,1740502873535,-913.81,0.00055068,120]
[354449036,1740502873566,-500.0,0.00055068,120]
[354449037,1740502873594,-500.0,0.00055068,120]
[354449038,1740502873624,-672.5,0.00055068,120]
[354449039,1740502873652,-955.91,0.00055068,120]
[354449040,1740502873681,-500.0,0.00055068,120]
[354449041,1740502873711,-1000.0,0.00055068,120]
[354449042,1740502873746,-500.0,0.00055068,120]
[354449043,1740502873775,-2086.42,0.00055068,120]
[354449044,1740502873802,-500.0,0.00055068,120]
[354449045,1740502873829,-500.0,0.00055068,120]
[354449046,1740502873858,-500.0,0.00055068,120]
[354449047,1740502873887,-500.0,0.00055068,120]
[354449048,1740502873915,-502.26496603,0.00055068,120]
[354449049,1740502873948,-500.0,0.00055068,120]
[354449050,1740502873984,-500.0,0.00055068,120]
[354449051,1740502874014,-500.0,0.00055068,120]
[354449052,1740502874044,-841.09,0.00055068,120]
[354449053,1740502874077,-1000.0,0.00055068,60]
[354449054,1740502874108,-830.34,0.00055068,120]
[354449055,1740502874135,-500.0,0.00055068,120]
[354449056,1740502874166,-500.0,0.00055068,120]
[354449057,1740502874195,-500.0,0.00055068,120]
[354449058,1740502874227,-500.0,0.00055068,120]
[354449059,1740502874257,-500.0,0.00055068,120]
[354449060,1740502874285,-500.0,0.00055068,120]
[354449061,1740502874314,-500.0,0.00055068,120]
[354449062,1740502874342,-500.0,0.00055068,120]
[354449063,1740502874369,-317.90224808,0.00055068,120]
[354449064,1740502874397,-500.0,0.00055068,120]
[354449065,1740502874426,-834.29,0.00055068,120]
[354449066,1740502874455,-746.72,0.00055068,120]
[354449067,1740502874484,-691.21,0.00055068,120]
[354449068,1740502874513,-500.0,0.00055068,120]
[354449069,1740502874545,-500.0,0.00055068,120]
[354449070,1740502874572,-1655.04,0.00055068,120]
[354449071,1740502874603,-502.94,0.00055068,120]
[354449072,1740502874631,-500.0,0.00055068,120]
[354449073,1740502874658,-500.0,0.00055068,40]
[354449074,1740502874685,-500.0,0.00055068,120]
[354449075,1740502874713,-500.0,0.00055068,120]
[354449076,1740502874742,-921.21,0.00055068,120]
[354449077,1740502874769,-500.0,0.00055068,120]
[354449078,1740502874796,-464.4682694,0.00055068,120]
[354449079,1740502874825,-713.58,0.00055068,120]
[354449080,1740502874853,-596.67,0.00055068,120]
[354449081,1740502874880,-500.0,0.00055068,120]
[354449082,1740502874908,-500.0,0.00055068,120]
[354449083,1740502874936,-503.13362595,0.00055068,120]
[354449084,1740502874963,-500.0,0.00055068,120]
[354449085,1740502874992,-500.0,0.00055068,120]
[354449086,1740502875020,-1625.37,0.00055068,120]
[354449087,1740502875049,-500.0,0.00055068,120]
[354449088,1740502875077,-332.7516749,0.00055068,120]
[354449089,1740502875106,-500.0,0.00055068,120]
[354449090,1740502875398,-529.35,0.00055068,120]
[354449091,1740502875426,-500.0,0.00055068,120]
[354449092,1740502875453,-500.0,0.00055068,120]
[354449093,1740502875484,-1479.42,0.00055068,120]
[354449094,1740502875512,-500.25312716,0.00055068,120]
[354449095,1740502875540,-500.0,0.00055068,120]
[354449096,1740502875568,-500.0,0.00055068,120]
[354449097,1740502875595,-548.42462649,0.00055068,120]
[354449098,1740502875622,-500.0,0.00055068,120]
[354449099,1740502875650,-500.0,0.00055068,120]
[354449100,1740502875683,-575.90322446,0.00055068,120]
[354449101,1740502875712,-500.0,0.00055068,120]
[354449102,1740502875740,-500.0,0.00055068,120]
[354449103,1740502875766,-638.86,0.00055068,120]
[354449104,1740502875794,-501.38973208,0.00055068,120]
[354449105,1740502875821,-500.0,0.00055068,120]
[354449106,1740502875850,-512.71804805,0.00055068,120]
[354449107,1740502875877,-500.0,0.00055068,120]
[354449108,1740502875905,-500.0,0.00055068,120]
[354449109,1740502875933,-501.71689234,0.00055068,120]
[354449110,1740502875960,-500.0,0.00055068,120]
[354449111,1740502875988,-500.0,0.00055068,120]
[354449112,1740502876016,-501.51970935,0.00055068,120]
[354449113,1740502876042,-500.0,0.00055068,120]
[354449114,1740502876069,-500.0,0.00055068,120]
[354449115,1740502876096,-500.0,0.00055068,120]
[354449116,1740502876124,-500.0,0.00055068,120]
[354449117,1740502876153,-1843.19,0.00055068,120]
[354449118,1740502876181,-500.0,0.00055068,120]
[354449119,1740502876210,-500.0,0.00055068,120]
[354449120,1740502876237,-507.03957459,0.00055068,120]
[354449121,1740502876265,-500.0,0.00055068,120]
[354449122,1740502876298,-500.0,0.00055068,120]
[354449123,1740502876326,-1209.81,0.00055068,120]
[354449124,1740502876357,-819.85,0.00055068,120]
[354449125,1740502876385,-1438.12,0.00055068,120]
[354449126,1740502876414,-500.0,0.00055068,120]
[354449127,1740502876441,-501.42660419,0.00055068,120]
[354449128,1740502876470,-502.10530435,0.00055068,120]
[354449129,1740502876499,-500.0,0.00055068,120]
[354449130,1740502876527,-838.59,0.00055068,120]
[354449131,1740502876556,-500.0,0.00055068,120]
[354449132,1740502876590,-500.0,0.00055068,120]
[354449133,1740502876621,-2080.1,0.00055068,120]
[354449134,1740502876655,-505.98056483,0.00055068,120]
[354449135,1740502876688,-500.0,0.00055068,120]
[354449136,1740502876723,-1000.0,0.00055068,45]
[354449137,1740502876756,-701.54,0.00055068,120]
[354449138,1740502876787,-993.36,0.00055068,120]
[354449139,1740502876820,-500.0,0.00055068,120]
[354449140,1740502876849,-500.0,0.00055068,120]
[354449141,1740502876876,-505.30392289,0.00055068,120]
[354449142,1740502876904,-672.91,0.00055068,120]
[354449143,1740502876935,-1056.25,0.00055068,120]
[354449144,1740502876963,-500.0,0.00055068,120]
[354449145,1740502876992,-500.0,0.00055068,120]
[354449146,1740502877020,-1455.55,0.00055068,120]
[354449147,1740502877046,-500.0,0.00055068,120]
[354449148,1740502877073,-500.0,0.00055068,120]
[354449149,1740502877099,-500.0,0.00055068,120]
[354449150,1740502877125,-2320.96,0.00055068,120]
[354449151,1740502877151,-529.36,0.00055068,120]
[354449152,1740502877177,-738.12,0.00055068,120]
[354449153,1740502877204,-500.0,0.00055068,120]
[354449154,1740502877230,-500.0,0.00055068,120]
[354449155,1740502877256,-500.0,0.00055068,120]
[354449156,1740502877282,-500.0,0.00055068,120]
[354449157,1740502877308,-500.0,0.00055068,120]
[354449158,1740502877334,-500.0,0.00055068,120]
[354449159,1740502877361,-1621.35,0.00055068,120]
[354449160,1740502877388,-510.87,0.00055068,120]
[354449161,1740502877415,-504.29565844,0.00055068,120]
[354449162,1740502877444,-500.0,0.00055068,120]
[354449163,1740502877473,-500.0,0.00055068,120]
[354449164,1740502877507,-500.0,0.00055068,120]
[354449165,1740502877535,-927.93,0.00055068,120]
[354449166,1740502877562,-745.37,0.00055068,120]
[354449167,1740502877594,-500.0,0.00055068,120]
[354449168,1740502877623,-500.0,0.00055068,120]
[354449169,1740502877650,-500.0,0.00055068,120]
[354449170,1740502877679,-1047.11,0.00055068,120]
[354449171,1740502877708,-500.0,0.00055068,120]
[354449172,1740502877735,-1822.31,0.00055068,120]
[354449173,1740502877761,-500.0,0.00055068,120]
[354449174,1740502877789,-500.0,0.00055068,120]
[354449175,1740502877817,-520.68768316,0.00055068,120]
[354449176,1740502877845,-506.24660391,0.00055068,120]
[354449177,1740502877873,-500.0,0.00055068,120]
[354449178,1740502877899,-500.0,0.00055068,120]
[354449179,1740502877927,-500.0,0.00055068,120]
[354449180,1740502877953,-500.0,0.00055068,120]
[354449181,1740502877980,-500.0,0.00055068,120]
[354449182,1740502878006,-600.21,0.00055068,120]
[354449183,1740502878035,-500.0,0.00055068,120]
[354449184,1740502878061,-500.0,0.00055068,120]
[354449185,1740502878275,-500.0,0.00055068,120]
[354449186,1740502878303,-507.83744996,0.00055068,120]
[354449187,1740502878331,-504.72550683,0.00055068,120]
[354449188,1740502878358,-500.0,0.00055068,120]
[354449189,1740502878385,-500.0,0.00055068,120]
[354449190,1740502878414,-505.24982622,0.00055068,120]
[354449191,1740502878445,-503.41474283,0.00055068,120]
[354449192,1740502878475,-502.49,0.00055068,120]
[354449193,1740502878505,-500.0,0.00055068,120]
[354449194,1740502878533,-500.0,0.00055068,120]
[354449195,1740502878563,-500.0,0.00055068,120]
[354449196,1740502878592,-500.0,0.00055068,120]
[354449197,1740502878623,-824.38,0.00055068,120]
[354449198,1740502878653,-500.0,0.00055068,120]
[354449199,1740502878686,-622.87735909,0.00055068,120]
[354449200,1740502878719,-500.0,0.00055068,120]
[354449201,1740502878759,-500.0,0.00055068,120]
[354449202,1740502878792,-529.01551377,0.00055068,120]
[354449203,1740502878823,-500.0,0.00055068,120]
[354449204,1740502878855,-2130.29,0.00055068,120]
[354449205,1740502878887,-500.0,0.00055068,120]
[354449206,1740502878919,-503.85003881,0.00055068,120]
[354449207,1740502878951,-500.0,0.00055068,120]
[354449208,1740502878985,-511.10304953,0.00055068,120]
[354449209,1740502879014,-500.0,0.00055068,120]
[354449210,1740502879042,-500.0,0.00055068,120]
[354449211,1740502879072,-505.18005639,0.00055068,120]
[354449212,1740502879104,-500.0,0.00055068,120]
[354449213,1740502879133,-500.0,0.00055068,120]
[354449214,1740502879164,-500.0,0.00055068,120]
[354449215,1740502879195,-500.0,0.00055068,120]
[354449216,1740502879228,-500.0,0.00055068,120]
[354449217,1740502879258,-1134.45,0.00055068,120]
[354449218,1740502879287,-500.0,0.00055068,120]
[354449219,1740502879318,-500.0,0.00055068,120]
[354449220,1740502879350,-1811.12,0.00055068,120]
[354449221,1740502879381,-529.22381903,0.00055068,120]
[354449222,1740502879413,-500.0,0.00055068,120]
[354449223,1740502879444,-500.0,0.00055068,120]
[354449224,1740502879479,-500.0,0.00055068,120]
[354449225,1740502879510,-500.0,0.00055068,120]
[354449226,1740502879539,-500.0,0.00055068,120]
[354449227,1740502879567,-500.0,0.00055068,120]
[354449228,1740502879596,-516.43310364,0.00055068,120]
[354449229,1740502879623,-1067.21,0.00055068,120]
[354449230,1740502879649,-441.14162659,0.00055068,120]
[354449231,1740502879676,-714.47,0.00055068,120]
[354449232,1740502879703,-500.0,0.00055068,120]
[354449233,1740502879730,-500.0,0.00055068,120]
[354449234,1740502879757,-500.0,0.00055068,120]
[354449235,1740502879784,-500.0,0.00055068,120]
[354449236,1740502879811,-500.0,0.00055068,120]
[354449237,1740502879838,-500.0,0.00055068,120]
[354449238,1740502879865,-500.0,0.00055068,120]
[354449239,1740502879892,-500.0,0.00055068,120]
[354449240,1740502879920,-969.25,0.00055068,120]
[354449241,1740502879947,-500.0,0.00055068,120]
[354449242,1740502879975,-500.0,0.00055068,120]
[354449243,1740502880001,-1052.26,0.00055068,120]
[354449244,1740502880028,-500.0,0.00055068,120]
[354449245,1740502880053,-500.0,0.00055068,120]
[354449246,1740502880080,-1088.33,0.00055068,120]
[354449247,1740502880105,-252.96882295,0.00055068,120]
[354449248,1740502880136,-500.0,0.00055068,120]
[354449249,1740502880162,-500.0,0.00055068,120]
[354449250,1740502880190,-500.0,0.00055068,120]
[354449251,1740502880217,-500.0,0.00055068,120]
[354449252,1740502880249,-591.1,0.00055068,120]
[354449253,1740502880278,-500.0,0.00055068,120]
[354449254,1740502880308,-205.31543871,0.00055068,120]
[354449255,1740502880340,-500.0,0.00055068,120]
[354449256,1740502880370,-614.7701319,0.00055068,120]
[354449257,1740502880403,-500.0,0.00055068,120]
[354449258,1740502880431,-507.81654722,0.00055068,120]
[354449259,1740502880458,-734.2,0.00055068,120]
[354449260,1740502880492,-1443.64,0.00055068,120]
[354449261,1740502880522,-500.0,0.00055068,120]
[354449262,1740502880552,-500.0,0.00055068,120]
[354449263,1740502880585,-500.0,0.00055068,120]
[354449264,1740502880612,-4848.78,0.00055068,120]
[354449265,1740502880638,-500.65501834,0.00055068,120]
[354449266,1740502880665,-505.0233727,0.00055068,120]
[354449267,1740502880691,-500.0,0.00055068,120]
[354449268,1740502880716,-522.00188937,0.00055068,120]
[354449269,1740502880743,-504.77367579,0.00055068,120]
[354449270,1740502880768,-544.81,0.00055068,120]
[354449271,1740502880794,-500.0,0.00055068,120]
[354449272,1740502880819,-849.2,0.00055068,120]
[354449273,1740502880845,-678.35,0.00055068,120]
[354449274,1740502880871,-594.64,0.00055068,120]
[354449275,1740502880897,-500.0,0.00055068,120]
[354449276,1740502880924,-975.54,0.00055068,120]
[354449277,1740502880950,-545.71,0.00055068,120]
[354449278,1740502880978,-500.0,0.00055068,120]
[354449279,1740502881004,-500.0,0.00055068,120]
[354449280,1740502881203,-500.63397586,0.00055068,120]
[354449281,1740502881231,-500.0,0.00055068,120]
[354449282,1740502881257,-504.48132876,0.00055068,120]
[354449283,1740502881284,-500.0,0.00055068,120]
[354449284,1740502881311,-500.0,0.00055068,120]
[354449285,1740502881338,-527.19,0.00055068,120]
[354449286,1740502881366,-1705.94,0.00055068,120]
[354449287,1740502881395,-503.63359484,0.00055068,120]
[354449288,1740502881422,-503.2526272,0.00055068,120]
[354449289,1740502881448,-500.0,0.00055068,120]
[354449290,1740502881477,-502.45714611,0.00055068,120]
[354449291,1740502881506,-501.76326787,0.00055068,120]
[354449292,1740502881534,-502.11360478,0.00055068,120]
[354449293,1740502881562,-500.0,0.00055068,120]
[354449294,1740502881592,-858.54,0.00055068,120]
[354449295,1740502881620,-503.45962566,0.00055068,120]
[354449296,1740502881647,-500.0,0.00055068,120]
[354449297,1740502881674,-500.0,0.00055068,120]
[354449298,1740502881700,-500.0,0.00055068,120]
[354449299,1740502881731,-500.0,0.00055068,120]
[354449300,1740502881760,-500.0,0.00055068,120]
[354449301,1740502881788,-501.8285756,0.00055068,120]
[354449302,1740502881815,-1263.22,0.00055068,120]
[354449303,1740502881842,-500.0,0.00055068,120]
[354449304,1740502881869,-500.0,0.00055068,120]
[354449305,1740502881896,-385.37349075,0.00055068,120]
[354449306,1740502881923,-399.45741061,0.00055068,120]
[354449307,1740502881949,-500.0,0.00055068,120]
[354449308,1740502881977,-500.0,0.00055068,120]
[354449309,1740502882005,-500.0,0.00055068,120]
[354449310,1740502882031,-543.05,0.00055068,120]
[354449311,1740502882058,-500.0,0.00055068,120]
[354449312,1740502882086,-500.0,0.00055068,120]
[354449313,1740502882113,-500.0,0.00055068,120]
[354449314,1740502882140,-500.0,0.00055068,120]
[354449315,1740502882166,-1498.32,0.00055068,120]
[354449316,1740502882193,-500.0,0.00055068,120]
[354449317,1740502882222,-1163.37,0.00055068,120]
[354449318,1740502882253,-257.9459038,0.00055068,120]
[354449319,1740502882280,-500.0,0.00055068,120]
[354449320,1740502882311,-500.0,0.00055068,120]
[354449321,1740502882339,-500.0,0.00055068,120]
[354449322,1740502882368,-500.0,0.00055068,120]
[354449323,1740502882400,-591.63,0.00055068,120]
[354449324,1740502882429,-500.0,0.00055068,120]
[354449325,1740502882458,-500.0,0.00055068,120]
[354449326,1740502882490,-500.0,0.00055068,120]
[354449327,1740502882519,-1313.53,0.00055068,120]
[354449328,1740502882547,-500.0,0.00055068,120]
[354449329,1740502882573,-500.0,0.00055068,120]
[354449330,1740502882601,-500.0,0.00055068,120]
[354449331,1740502882629,-500.0,0.00055068,120]
[354449332,1740502882657,-500.0,0.00055068,120]
[354449333,1740502882684,-500.0,0.00055068,120]
[354449334,1740502882711,-500.0,0.00055068,120]
[354449335,1740502882746,-500.0,0.00055068,120]
[354449336,1740502882776,-1227.58,0.00055068,120]
[354449337,1740502882802,-500.0,0.00055068,120]
[354449338,1740502882828,-500.0,0.00055068,120]
[354449339,1740502882854,-1447.61,0.00055068,120]
[354449340,1740502882880,-500.0,0.00055068,120]
[354449341,1740502882906,-887.86,0.00055068,120]
[354449342,1740502882932,-500.0,0.00055068,120]
[354449343,1740502882958,-500.0,0.00055068,120]
[354449344,1740502882984,-306.51492006,0.00055068,120]
[354449345,1740502883013,-2524.01,0.00055068,120]
[354449346,1740502883041,-500.0,0.00055068,120]
[354449347,1740502883067,-163.38289697,0.00055068,120]
[354449348,1740502883093,-500.0,0.00055068,120]
[354449349,1740502883122,-1543.8,0.00055068,120]
[354449350,1740502883149,-236.83791651,0.00055068,120]
[354449351,1740502883177,-500.0,0.00055068,120]
[354449352,1740502883204,-1046.9,0.00055068,120]
[354449353,1740502883236,-620.57,0.00055068,120]
[354449354,1740502883262,-500.0,0.00055068,120]
[354449355,1740502883288,-500.0,0.00055068,120]
[354449356,1740502883313,-500.0,0.00055068,120]
[354449357,1740502883340,-627.14,0.00055068,120]
[354449358,1740502883368,-2951.07,0.00055068,120]
[354449359,1740502883394,-500.0,0.00055068,120]
[354449360,1740502883422,-500.0,0.00055068,120]
[354449361,1740502883450,-1398.77,0.00055068,120]
[354449362,1740502883480,-2043.04,0.00055068,120]
[354449363,1740502883507,-500.0,0.00055068,120]
[354449364,1740502883536,-500.0,0.00055068,120]
[354449365,1740502883563,-507.94913592,0.00055068,120]
[354449366,1740502883590,-375.3453299,0.00055068,120]
[354449367,1740502883616,-503.53919867,0.00055068,120]
[354449368,1740502883645,-504.80906214,0.00055068,120]
[354449369,1740502883672,-2140.69,0.00055068,120]
[354449370,1740502883700,-500.0,0.00055068,120]
[354449371,1740502883730,-500.0,0.00055068,120]
[354449372,1740502883756,-500.0,0.00055068,120]
[354449373,1740502883783,-500.0,0.00055068,120]
[354449374,1740502884002,-506.67869494,0.00055068,120]
[354449375,1740502884029,-508.10178392,0.00055068,120]
[354449376,1740502884058,-2270.69,0.00055068,120]
[354449377,1740502884085,-500.0,0.00055068,120]
[354449378,1740502884112,-500.0,0.00055068,120]
[354449379,1740502884139,-1051.01,0.00055068,120]
[354449380,1740502884165,-501.19196862,0.00055068,120]
[354449381,1740502884192,-500.0,0.00055068,120]
[354449382,1740502884221,-506.05243692,0.00055068,120]
[354449383,1740502884252,-500.0,0.00055068,120]
[354449384,1740502884280,-3463.25,0.00055068,120]
[354449385,1740502884306,-510.38069301,0.00055068,120]
[354449386,1740502884336,-984.91,0.00055068,120]
[354449387,1740502884364,-501.62813783,0.00055068,120]
[354449388,1740502884391,-500.0,0.00055068,120]
[354449389,1740502884417,-500.0,0.00055068,120]
[354449390,1740502884445,-782.43,0.00055068,120]
[354449391,1740502884471,-500.0,0.00055068,120]
[354449392,1740502884507,-3829.89,0.00055068,120]
[354449393,1740502884533,-1269.18,0.00055068,120]
[354449394,1740502884561,-1973.0,0.00055068,120]
[354449395,1740502884591,-261.485768,0.00055068,120]
[354449396,1740502884617,-500.0,0.00055068,120]
[354449397,1740502884644,-1163.14,0.00055068,120]
[354449398,1740502884672,-500.0,0.00055068,120]
[354449399,1740502884698,-532.69220255,0.00055068,120]
[354449400,1740502884724,-500.0,0.00055068,120]
[354449401,1740502884753,-537.26572012,0.00055068,120]
[354449402,1740502884780,-735.33,0.00055068,120]
[354449403,1740502884805,-500.0,0.00055068,120]
[354449404,1740502884833,-508.75364971,0.00055068,120]
[354449405,1740502884860,-4538.81,0.00055068,120]
[354449406,1740502884888,-500.0,0.00055068,120]
[354449407,1740502884917,-500.0,0.00055068,120]
[354449408,1740502884944,-2082.48,0.00055068,120]
[354449409,1740502884970,-1684.66,0.00055068,120]
[354449410,1740502884998,-500.0,0.00055068,120]
[354449411,1740502885026,-3165.77,0.00055068,120]
[354449412,1740502885052,-502.11574759,0.00055068,120]
[354449413,1740502885079,-500.0,0.00055068,120]
[354449414,1740502885106,-500.0,0.00055068,120]